fUSD/lending_fUSD_20240718
["ID","MTS","AMOUNT","RATE_DAILY","PERIOD"]
[332522978,1721288004524,-504.93204193,0.00023561,2]
[332522979,1721288004533,-500.0,0.00023561,2]
[332522980,1721288004543,-500.0,0.00023561,2]
[332522981,1721288004552,-897.02,0.00023561,2]
[332522982,1721288004561,-500.0,0.00023561,2]
[332522983,1721288004571,-500.0,0.00023561,2]
[332522984,1721288004580,-919.85,0.00023561,2]
[332522985,1721288004590,-763.5,0.00023561,2]
[332522986,1721288004599,-812.96,0.00023561,2]
[332522987,1721288004608,-709.03,0.00023561,2]
[332522988,1721288004618,-915.85,0.00023561,2]
[332522989,1721288004626,-500.0,0.00023561,2]
[332522990,1721288004636,-500.0,0.00023561,2]
[332522991,1721288004650,-1583.56,0.00023561,2]
[332522992,1721288004660,-500.0,0.00023561,2]
[332522993,1721288004670,-634.02,0.00023561,2]
[332522994,1721288004683,-1299.19,0.00023561,2]
[332522995,1721288004693,-1450.66,0.00023561,2]
[332522996,1721288004704,-500.0,0.00023561,2]
[332522997,1721288004714,-500.0,0.00023561,2]
[332522998,1721288004724,-500.0,0.00023561,2]
[332522999,1721288004733,-708.78,0.00023561,2]
[332523000,1721288004742,-500.0,0.00023561,2]
[332523001,1721288004751,-948.76,0.00023561,2]
[332523002,1721288004761,-500.0,0.00023561,2]
[332523003,1721288004770,-2003.88,0.00023561,2]
[332523004,1721288004780,-1051.57,0.00023561,2]
[332523005,1721288004789,-796.81,0.00023561,2]
[332523006,1721288004798,-601.06,0.00023561,2]
[332523007,1721288004808,-515.65,0.00023561,2]
[332523008,1721288004817,-1013.83,0.00023561,2]
[332523009,1721288004827,-500.0,0.00023561,2]
[332523010,1721288004836,-500.0,0.00023561,2]
[332523011,1721288004845,-544.27,0.00023561,2]
[332523012,1721288004855,-503.35,0.00023561,2]
[332523013,1721288004864,-500.0,0.00023561,2]
[332523014,1721288004874,-1547.31,0.00023561,2]
[332523015,1721288004883,-500.0,0.00023561,2]
[332523016,1721288004893,-500.0,0.00023561,2]
[332523017,1721288004902,-500.0,0.00023561,2]
[332523018,1721288004912,-500.0,0.00023561,2]
[332523019,1721288004923,-500.0,0.00023561,2]
[332523020,1721288004933,-612.66,0.00023561,2]
[332523021,1721288004942,-957.7,0.00023561,2]
[332523022,1721288004953,-999.04,0.00023561,2]
[332523023,1721288004963,-677.55,0.00023561,2]
[332523024,1721288004973,-500.0,0.00023561,2]
[332523025,1721288004982,-549.83,0.00023561,2]
[332523026,1721288004992,-500.0,0.00023561,2]
[332523027,1721288005002,-798.47,0.00023561,2]
[332523028,1721288005012,-500.0,0.00023561,2]
[332523029,1721288005021,-695.01,0.00023561,2]
[332523030,1721288005031,-500.0,0.00023561,2]
[332523031,1721288005041,-500.0,0.00023561,2]
[332523032,1721288005051,-500.0,0.00023561,2]
[332523033,1721288005060,-518.09,0.00023561,2]
[332523034,1721288005071,-500.0,0.00023561,2]
[332523035,1721288005080,-500.0,0.00023561,2]
[332523036,1721288005090,-813.28,0.00023561,2]
[332523037,1721288005099,-500.0,0.00023561,2]
[332523038,1721288005109,-1656.81,0.00023561,2]
[332523039,1721288005118,-553.36618748,0.00023561,2]
[332523040,1721288005128,-945.22,0.00023561,2]
[332523041,1721288005139,-947.17,0.00023561,2]
[332523042,1721288005149,-352.44403056,0.00023561,2]
[332523043,1721288005159,-500.0,0.00023561,2]
[332523044,1721288005170,-500.0,0.00023561,2]
[332523045,1721288005180,-539.79,0.00023561,2]
[332523046,1721288005190,-706.37,0.00023561,2]
[332523047,1721288005200,-500.0,0.00023561,2]
[332523048,1721288005209,-500.0,0.00023561,2]
[332523049,1721288005220,-577.85635491,0.00023561,2]
[332523050,1721288005229,-500.0,0.00023561,2]
[332523051,1721288005238,-1135.75,0.00023561,2]
[332523052,1721288005248,-500.0,0.00023561,2]
[332523053,1721288005258,-673.53,0.00023561,2]
[332523054,1721288005267,-836.84,0.00023561,2]
[332523055,1721288005277,-3128.96,0.00023561,2]
[332523056,1721288005287,-500.0,0.00023561,2]
[332523057,1721288005297,-162.3245721,0.00023561,2]
[332523058,1721288005307,-500.0,0.00023561,2]
[332523059,1721288005317,-500.0,0.00023561,2]
[332523060,1721288005326,-500.0,0.00023561,2]
[332523061,1721288005336,-842.49,0.00023561,2]
[332523062,1721288005346,-500.0,0.00023561,2]
[332523063,1721288005356,-557.31,0.00023561,2]
[332523064,1721288005366,-669.1,0.00023561,2]
[332523065,1721288005375,-3223.32,0.00023561,2]
[332523066,1721288005385,-500.0,0.00023561,2]
[332523067,1721288005395,-542.57,0.00023561,2]
[332523068,1721288005405,-884.02,0.00023561,2]
[332523069,1721288005415,-500.0,0.00023561,2]
[332523070,1721288005424,-1416.46,0.00023561,2]
[332523071,1721288005435,-525.77,0.00023561,2]
[332523072,1721288005446,-500.0,0.00023561,2]
[332523073,1721288005456,-500.0,0.00023561,2]
[332523074,1721288005467,-808.77,0.00023561,2]
[332523075,1721288005477,-500.0,0.00023561,2]
[332523076,1721288005487,-500.0,0.00023561,2]
[332523077,1721288005497,-888.04,0.00023561,2]
[332523078,1721288005507,-813.18,0.00023561,2]
[332523079,1721288005516,-2204.96,0.00023561,2]
[332523080,1721288005525,-500.0,0.00023561,2]
[332523081,1721288005535,-617.34,0.00023561,2]
[332523082,1721288005545,-503.15,0.00023561,2]
[332523083,1721288005554,-500.0,0.00023561,2]
[332523084,1721288005564,-500.0,0.00023561,2]
[332523085,1721288005573,-500.0,0.00023561,2]
[332523086,1721288005583,-550.97,0.00023561,2]
[332523087,1721288005594,-500.0,0.00023561,2]
[332523088,1721288005603,-773.79,0.00023561,2]
[332523089,1721288005613,-1258.11,0.00023561,2]
[332523090,1721288005623,-556.49,0.00023561,2]
[332523091,1721288005633,-1541.61,0.00023561,2]
[332523092,1721288005646,-500.0,0.00023561,2]
[332523093,1721288005655,-1497.76,0.00023561,2]
[332523094,1721288005665,-500.0,0.00023561,2]
[332523095,1721288005676,-923.36,0.00023561,2]
[332523096,1721288005687,-500.0,0.00023561,2]
[332523097,1721288005697,-500.0,0.00023561,2]
[332523098,1721288005707,-698.16,0.00023561,2]
[332523099,1721288005719,-1777.63,0.00023561,2]
[332523100,1721288005730,-1751.66,0.00023561,2]
[332523101,1721288005740,-500.0,0.00023561,2]
[332523102,1721288005750,-500.0,0.00023561,2]
[332523103,1721288005760,-500.0,0.00023561,2]
[332523104,1721288005770,-1440.65,0.00023561,2]
[332523105,1721288005781,-748.62,0.00023561,2]
[332523106,1721288005791,-702.74,0.00023561,2]
[332523107,1721288005801,-500.0,0.00023561,2]
[332523108,1721288005811,-500.0,0.00023561,2]
[332523109,1721288005821,-500.0,0.00023561,2]
[332523110,1721288005831,-500.0,0.00023561,2]
[332523111,1721288005841,-500.0,0.00023561,2]
[332523112,1721288005850,-600.34,0.00023561,2]
[332523113,1721288005860,-1459.37,0.00023561,2]
[332523114,1721288005870,-500.0,0.00023561,2]
[332523115,1721288005880,-834.65,0.00023561,2]
[332523116,1721288005890,-574.9,0.00023561,2]
[332523117,1721288005900,-967.34,0.00023561,2]
[332523118,1721288005911,-500.0,0.00023561,2]
[332523119,1721288005921,-945.46,0.00023561,2]
[332523120,1721288005933,-500.0,0.00023561,2]
[332523121,1721288005942,-500.0,0.00023561,2]
[332523122,1721288005952,-6789.46,0.00023561,2]
[332523123,1721288005962,-1649.03,0.00023561,2]
[332523124,1721288005972,-1351.16,0.00023561,2]
[332523125,1721288005982,-846.83,0.00023561,2]
[332523126,1721288005991,-3838.48,0.00023561,2]
[332523127,1721288006001,-727.83,0.00023561,2]
[332523128,1721288006011,-500.0,0.00023561,2]
[332523129,1721288006021,-500.0,0.00023561,2]
[332523130,1721288006031,-500.0,0.00023561,2]
[332523131,1721288006041,-500.0,0.00023561,2]
[332523132,1721288006051,-1099.8,0.00023561,2]
[332523133,1721288006061,-592.88,0.00023561,2]
[332523134,1721288006071,-500.0,0.00023561,2]
[332523135,1721288006081,-758.27,0.00023561,2]
[332523136,1721288006090,-1314.69,0.00023561,2]
[332523137,1721288006100,-660.25,0.00023561,2]
[332523138,1721288006110,-500.0,0.00023561,2]
[332523139,1721288006119,-1225.2,0.00023561,2]
[332523140,1721288006129,-500.0,0.00023561,2]
[332523141,1721288006139,-690.8,0.00023561,2]
[332523142,1721288006149,-500.0,0.00023561,2]
[332523143,1721288006158,-815.9,0.00023561,2]
[332523144,1721288006168,-500.0,0.00023561,2]
[332523145,1721288006177,-500.0,0.00023561,2]
[332523146,1721288006187,-1445.6,0.00023561,2]
[332523147,1721288006197,-1211.24,0.00023561,2]
[332523148,1721288006206,-1000.0,0.00023561,2]
[332523149,1721288006216,-764.9,0.00023561,2]
[332523150,1721288006226,-500.0,0.00023561,2]
[332523151,1721288006235,-500.0,0.00023561,2]
[332523152,1721288006245,-1017.79,0.00023561,2]
[332523153,1721288006255,-500.0,0.00023561,2]
[332523154,1721288006265,-500.0,0.00023561,2]
[332523155,1721288006274,-500.0,0.00023561,2]
[332523156,1721288006284,-500.0,0.00023561,2]
[332523157,1721288006293,-500.0,0.00023561,2]
[332523158,1721288006303,-819.77,0.00023561,2]
[332523159,1721288006312,-843.65,0.00023561,2]
[332523160,1721288006321,-508.09,0.00023561,2]
[332523161,1721288006331,-1121.8,0.00023561,2]
[332523162,1721288006340,-500.0,0.00023561,2]
[332523163,1721288006350,-4510.49,0.00023561,2]
[332523164,1721288006359,-500.0,0.00023561,2]
[332523165,1721288006368,-500.0,0.00023561,2]
[332523166,1721288006377,-548.62,0.00023561,2]
[332523167,1721288006387,-615.98,0.00023561,2]
[332523168,1721288006397,-732.51,0.00023561,2]
[332523169,1721288006406,-500.0,0.00023561,2]
[332523170,1721288006416,-500.0,0.00023561,2]
[332523171,1721288006426,-500.0,0.00023561,2]
[332523172,1721288006436,-727.51,0.00023561,2]
[332523173,1721288006445,-500.0,0.00023561,2]
[332523174,1721288006456,-699.69,0.00023561,2]
[332523175,1721288006466,-500.0,0.00023561,2]
[332523176,1721288006476,-780.84,0.00023561,2]
[332523177,1721288006486,-985.19,0.00023561,2]
[332523178,1721288006497,-500.0,0.00023561,2]
[332523179,1721288006507,-2219.16,0.00023561,2]
[332523180,1721288006516,-500.0,0.00023561,2]
[332523181,1721288006526,-2008.64,0.00023561,2]
[332523182,1721288006535,-661.47,0.00023561,2]
[332523183,1721288006546,-509.37037961,0.00023561,2]
[332523184,1721288006556,-707.34,0.00023561,2]
[332523185,1721288006566,-776.84,0.00023561,2]
[332523186,1721288006576,-500.0,0.00023561,2]
[332523187,1721288006587,-6067.08,0.00023561,2]
[332523188,1721288006597,-500.0,0.00023561,2]
[332523189,1721288006607,-2197.33,0.00023561,2]
[332523190,1721288006618,-500.0,0.00023561,2]
[332523191,1721288006628,-500.0,0.00023561,2]
[332523192,1721288006638,-813.45,0.00023561,2]
[332523193,1721288006652,-500.0,0.00023561,2]
[332523194,1721288006661,-500.0,0.00023561,2]
[332523195,1721288006671,-500.0,0.00023561,2]
[332523196,1721288006681,-1222.6,0.00023561,2]
[332523197,1721288006691,-685.95,0.00023561,2]
[332523198,1721288006701,-885.84,0.00023561,2]
[332523199,1721288006711,-500.0,0.00023561,2]
[332523200,1721288006722,-500.0,0.00023561,2]
[332523201,1721288006732,-500.0,0.00023561,2]
[332523202,1721288006741,-589.04,0.00023561,2]
[332523203,1721288006752,-703.44,0.00023561,2]
[332523204,1721288006762,-919.77,0.00023561,2]
[332523205,1721288006772,-2956.08,0.00023561,2]
[332523206,1721288006782,-500.0,0.00023561,2]
[332523207,1721288006792,-500.0,0.00023561,2]
[332523208,1721288006802,-699.95,0.00023561,2]
[332523209,1721288006813,-500.0,0.00023561,2]
[332523210,1721288006823,-758.73,0.00023561,2]
[332523211,1721288006832,-500.0,0.00023561,2]
[332523212,1721288006843,-1023.99,0.00023561,2]
[332523213,1721288006853,-500.0,0.00023561,2]
[332523214,1721288006863,-500.0,0.00023561,2]
[332523215,1721288006873,-500.0,0.00023561,2]
[332523216,1721288006884,-500.0,0.00023561,2]
[332523217,1721288006893,-893.45,0.00023561,2]
[332523218,1721288006903,-1159.85,0.00023561,2]
[332523219,1721288006914,-500.0,0.00023561,2]
[332523220,1721288006924,-500.0,0.00023561,2]
[332523221,1721288006935,-500.0,0.00023561,2]
[332523222,1721288006947,-500.0,0.00023561,2]
[332523223,1721288006958,-500.0,0.00023561,2]
[332523224,1721288006969,-799.42,0.00023561,2]
[332523225,1721288006980,-500.0,0.00023561,2]
[332523226,1721288006989,-500.0,0.00023561,2]
[332523227,1721288007000,-500.0,0.00023561,2]
[332523228,1721288007011,-500.0,0.00023561,2]
[332523229,1721288007021,-500.0,0.00023561,2]
[332523230,1721288007032,-500.0,0.00023561,2]
[332523231,1721288007042,-500.0,0.00023561,2]
[332523232,1721288007052,-622.67,0.00023561,2]
[332523233,1721288007061,-1997.06,0.00023561,2]
[332523234,1721288007072,-500.0,0.00023568,2]
[332523235,1721288007082,-445.12807451,0.00023569,2]
[332523236,1721288007092,-500.0,0.00023577,2]
[332523237,1721288007101,-500.0,0.00023585,2]
[332523238,1721288007111,-2062.94975587,0.00023592,2]
[332523239,1721288007121,-500.0,0.00023594,2]
[332523240,1721288007131,-383.3,0.00023596,2]
[332523241,1721288007142,-197.82356527,0.00023597,2]
[332523242,1721288007152,-338.0,0.000236,2]
[332523243,1721288007161,-252.0,0.000236,2]
[332523244,1721288007171,-500.0,0.00023603,2]
[332523245,1721288007306,-197.82356527,0.00023604,2]
[332523246,1721288007318,-445.12807451,0.00023607,2]
[332523247,1721288007327,-500.0,0.00023612,2]
[332523248,1721288007337,-157.03911617,0.00023612,2]
[332523249,1721288007347,-500.0,0.00023621,2]
[332523250,1721288007357,-157.03911617,0.00023622,2]
[332523251,1721288007368,-166.6666667,0.00023623,2]
[332523252,1721288007377,-500.0,0.00023629,2]
[332523253,1721288007387,-500.0,0.00023638,2]
[332523254,1721288007397,-449.17565101,0.0002364,2]
[332523255,1721288007407,-500.0,0.00023647,2]
[332523256,1721288007417,-445.12807451,0.00023648,2]
[332523257,1721288007427,-150.0,0.00023648,2]
[332523258,1721288007438,-500.0,0.00023656,2]
[332523259,1721288007449,-161.84605211,0.00023661,2]
[332523260,1721288007460,-2062.94975587,0.00023664,2]
[332523261,1721288007470,-500.0,0.00023665,2]
[332523262,1721288007480,-151.42828929,0.00023672,2]
[332523263,1721288007490,-500.0,0.00023673,2]
[332523264,1721288007500,-156.65385581,0.00023676,2]
[332523265,1721288007510,-805.34233156,0.00023681,2]
[332523266,1721288007520,-500.0,0.00023682,2]
[332523267,1721288007529,-197.82356527,0.00023686,2]
[332523268,1721288007539,-500.0,0.00023691,2]
[332523269,1721288007549,-150.0,0.00023693,2]
[332523270,1721288007558,-166.90315977,0.00023695,2]
[332523271,1721288007569,-197.82356527,0.00023695,2]
[332523272,1721288007579,-414.54398897,0.00023697,2]
[332523273,1721288007588,-151.42828929,0.00023698,2]
[332523274,1721288007599,-166.66666666,0.00023699,2]
[332523275,1721288007608,-500.0,0.000237,2]
[332523276,1721288007617,-2000.0,0.000237,2]
[332523277,1721288007627,-512.6,0.000237,2]
[332523278,1721288007640,-356.0,0.000237,2]
[332523279,1721288007650,-1000.0,0.000237,2]
[332523280,1721288007660,-151.42828929,0.00023705,2]
[332523281,1721288007670,-500.0,0.00023709,2]
[332523282,1721288007682,-150.0,0.00023709,2]
[332523283,1721288007693,-169.51426168,0.00023714,2]
[332523284,1721288007703,-805.34233156,0.00023714,2]
[332523285,1721288007713,-500.0,0.00023717,2]
[332523286,1721288007723,-150.0,0.00023722,2]
[332523287,1721288007735,-500.0,0.00023726,2]
[332523288,1721288007744,-500.0,0.00023735,2]
[332523289,1721288007754,-2062.94975587,0.00023741,2]
[332523290,1721288007763,-500.0,0.00023744,2]
[332523291,1721288007773,-500.0,0.00023753,2]
[332523292,1721288007782,-500.0,0.00023761,2]
[332523293,1721288007792,-500.0,0.0002377,2]
[332523294,1721288007803,-150.0,0.00023774,2]
[332523295,1721288007813,-524.53,0.00023778,2]
[332523296,1721288007823,-500.0,0.00023779,2]
[332523297,1721288007833,-500.0,0.00023788,2]
[332523298,1721288007843,-500.0,0.00023797,2]
[332523299,1721288007853,-500.0,0.00023805,2]
[332523300,1721288007863,-371.32697632,0.00023814,2]
[332523301,1721288007873,-500.0,0.00023814,2]
[332523302,1721288007882,-500.0,0.00023816,2]
[332523303,1721288007893,-267.41464615,0.00023816,2]
[332523304,1721288007903,-449.17565101,0.00023817,2]
[332523305,1721288007912,-500.0,0.00023823,2]
[332523306,1721288007922,-500.0,0.00023824,2]
[332523307,1721288007935,-500.0,0.00023832,2]
[332523308,1721288007944,-500.0,0.00023833,2]
[332523309,1721288007954,-500.0,0.00023835,2]
[332523310,1721288007963,-1548.92,0.00023835,2]
[332523311,1721288007974,-252.56839879,0.00023835,2]
[332523312,1721288007984,-500.0,0.00023835,2]
[332523313,1721288007994,-506.18981526,0.00023835,2]
[332523314,1721288008003,-500.0,0.00023835,2]
[332523315,1721288008014,-500.0,0.00023835,2]
[332523316,1721288008024,-500.0,0.00023835,2]
[332523317,1721288008034,-500.0,0.00023835,2]
[332523318,1721288008043,-500.0,0.00023835,2]
[332523319,1721288008053,-500.0,0.00023835,2]
[332523320,1721288008062,-500.0,0.00023835,2]
[332523321,1721288008072,-500.0,0.00023835,2]
[332523322,1721288008081,-500.0,0.00023835,2]
[332523323,1721288008091,-903.45,0.00023835,2]
[332523324,1721288008101,-500.0,0.00023835,2]
[332523325,1721288008110,-500.0,0.00023835,2]
[332523326,1721288008120,-500.0,0.00023835,2]
[332523327,1721288008129,-500.0,0.00023835,2]
[332523328,1721288008140,-500.0,0.00023835,2]
[332523329,1721288008150,-873.73,0.00023835,2]
[332523330,1721288008159,-500.0,0.00023835,2]
[332523331,1721288008170,-500.0,0.00023835,2]
[332523332,1721288008180,-500.0,0.00023835,2]
[332523333,1721288008191,-500.0,0.00023835,2]
[332523334,1721288008202,-500.0,0.00023835,2]
[332523335,1721288008213,-500.0,0.00023835,2]
[332523336,1721288008224,-1146.78,0.00023835,2]
[332523337,1721288008235,-500.0,0.00023835,2]
[332523338,1721288008247,-500.0,0.00023835,2]
[332523339,1721288008258,-500.0,0.00023835,2]
[332523340,1721288008267,-500.0,0.00023835,2]
[332523341,1721288008279,-500.0,0.00023835,2]
[332523342,1721288008291,-500.0,0.00023835,2]
[332523343,1721288008300,-755.65,0.00023835,2]
[332523344,1721288008310,-175.9572525,0.00023835,2]
[332523345,1721288008319,-500.0,0.00023835,2]
[332523346,1721288008328,-500.0,0.00023835,2]
[332523347,1721288008338,-500.0,0.00023835,2]
[332523348,1721288008348,-500.0,0.00023835,2]
[332523349,1721288008357,-1117.53,0.00023835,2]
[332523350,1721288008367,-1014.34,0.00023835,2]
[332523351,1721288008376,-500.0,0.00023835,2]
[332523352,1721288008385,-500.0,0.00023835,2]
[332523353,1721288008394,-500.0,0.00023835,2]
[332523354,1721288008404,-500.0,0.00023835,2]
[332523355,1721288008414,-515.0563311,0.00023835,2]
[332523356,1721288008423,-500.0,0.00023835,2]
[332523357,1721288008433,-500.0,0.00023835,2]
[332523358,1721288008443,-500.0,0.00023835,2]
[332523359,1721288008454,-500.0,0.00023835,2]
[332523360,1721288008463,-500.0,0.00023835,2]
[332523361,1721288008473,-500.0,0.00023835,2]
[332523362,1721288008483,-500.0,0.00023835,2]
[332523363,1721288008492,-500.0,0.00023835,2]
[332523364,1721288008501,-500.0,0.00023835,2]
[332523365,1721288008511,-500.0,0.00023835,2]
[332523366,1721288008520,-508.3327058,0.00023835,2]
[332523367,1721288008529,-500.0,0.00023835,2]
[332523368,1721288008539,-500.0,0.00023835,2]
[332523369,1721288008548,-500.0,0.00023835,2]
[332523370,1721288008558,-500.0,0.00023835,2]
[332523371,1721288008567,-500.0,0.00023835,2]
[332523372,1721288008577,-926.9,0.00023835,2]
[332523373,1721288008586,-500.0,0.00023835,2]
[332523374,1721288008595,-500.0,0.00023835,2]
[332523375,1721288008604,-500.0,0.00023835,2]
[332523376,1721288008614,-500.0,0.00023835,2]
[332523377,1721288008623,-500.0,0.00023835,2]
[332523378,1721288008634,-559.52,0.00023835,2]
[332523379,1721288008648,-1202.57,0.00023835,2]
[332523380,1721288008657,-500.0,0.00023835,2]
[332523381,1721288008666,-500.0,0.00023835,2]
[332523382,1721288008676,-500.0,0.00023835,2]
[332523383,1721288008687,-500.0,0.00023835,2]
[332523384,1721288008696,-500.0,0.00023835,2]
[332523385,1721288008706,-611.56162597,0.00023835,2]
[332523386,1721288008717,-500.0,0.00023835,2]
[332523387,1721288008726,-686.6,0.00023835,2]
[332523388,1721288008737,-500.0,0.00023835,2]
[332523389,1721288008747,-500.0,0.00023835,2]
[332523390,1721288008757,-500.0,0.00023835,2]
[332523391,1721288008767,-500.0,0.00023835,2]
[332523392,1721288008776,-500.0,0.00023835,2]
[332523393,1721288008785,-698.02,0.00023835,2]
[332523394,1721288008795,-500.0,0.00023835,2]
[332523395,1721288008805,-500.0,0.00023835,2]
[332523396,1721288008814,-500.0,0.00023835,2]
[332523397,1721288008824,-500.0,0.00023835,2]
[332523398,1721288008836,-500.0,0.00023835,2]
[332523399,1721288008846,-568.02,0.00023835,2]
[332523400,1721288008856,-500.0,0.00023835,2]
[332523401,1721288008866,-500.0,0.00023835,2]
[332523402,1721288008876,-500.0,0.00023835,2]
[332523403,1721288008885,-500.0,0.00023835,2]
[332523404,1721288008894,-500.0,0.00023835,2]
[332523405,1721288008905,-500.0,0.00023835,2]
[332523406,1721288008915,-471.13130889,0.00023835,2]
[332523407,1721288008924,-500.0,0.00023835,2]
[332523408,1721288008934,-500.0,0.00023835,2]
[332523409,1721288008943,-500.0,0.00023835,2]
[332523410,1721288008952,-506.5,0.00023835,2]
[332523411,1721288008962,-500.0,0.00023835,2]
[332523412,1721288008971,-500.0,0.00023835,2]
[332523413,1721288008981,-500.0,0.00023835,2]
[332523414,1721288008991,-579.89,0.00023835,2]
[332523415,1721288009001,-500.0,0.00023835,2]
[332523416,1721288009010,-502.22531163,0.00023835,2]
[332523417,1721288009020,-500.0,0.00023835,2]
[332523418,1721288009029,-500.0,0.00023835,2]
[332523419,1721288009039,-888.04,0.00023835,2]
[332523420,1721288009049,-877.77,0.00023835,2]
[332523421,1721288009058,-500.0,0.00023835,2]
[332523422,1721288009067,-500.0,0.00023835,2]
[332523423,1721288009077,-500.0,0.00023835,2]
[332523424,1721288009086,-500.0,0.00023835,2]
[332523425,1721288009095,-214.51128806,0.00023835,2]
[332523426,1721288009104,-500.0,0.00023835,2]
[332523427,1721288009114,-500.0,0.00023835,2]
[332523428,1721288009123,-500.0,0.00023835,2]
[332523429,1721288009133,-500.0,0.00023835,2]
[332523430,1721288009142,-500.0,0.00023835,2]
[332523431,1721288009151,-500.0,0.00023835,2]
[332523432,1721288009161,-500.0,0.00023835,2]
[332523433,1721288009170,-500.0,0.00023835,2]
[332523434,1721288009180,-689.95,0.00023835,2]
[332523435,1721288009190,-500.0,0.00023835,2]
[332523436,1721288009200,-500.0,0.00023835,2]
[332523437,1721288009209,-500.0,0.00023835,2]
[332523438,1721288009218,-500.0,0.00023835,2]
[332523439,1721288009227,-887.13,0.00023835,2]
[332523440,1721288009237,-500.0,0.00023835,2]
[332523441,1721288009246,-512.75,0.00023835,2]
[332523442,1721288009256,-500.0,0.00023835,2]
[332523443,1721288009265,-500.0,0.00023835,2]
[332523444,1721288009275,-500.0,0.00023835,2]
[332523445,1721288009285,-500.0,0.00023835,2]
[332523446,1721288009294,-500.0,0.00023835,2]
[332523447,1721288009303,-500.0,0.00023835,2]
[332523448,1721288009313,-500.0,0.00023835,2]
[332523449,1721288009322,-500.0,0.00023835,2]
[332523450,1721288009331,-500.0,0.00023835,2]
[332523451,1721288009340,-500.0,0.00023835,2]
[332523452,1721288009349,-500.0,0.00023835,2]
[332523453,1721288009360,-500.0,0.00023835,2]
[332523454,1721288009370,-500.0,0.00023835,2]
[332523455,1721288009379,-918.48,0.00023835,2]
[332523456,1721288009389,-500.0,0.00023835,2]
[332523457,1721288009399,-500.0,0.00023835,2]
[332523458,1721288009408,-500.0,0.00023835,2]
[332523459,1721288009418,-500.0,0.00023835,2]
[332523460,1721288009427,-500.0,0.00023835,2]
[332523461,1721288009437,-1130.16,0.00023835,2]
[332523462,1721288009447,-500.0,0.00023835,2]
[332523463,1721288009458,-500.0,0.00023835,2]
[332523464,1721288009467,-500.0,0.00023835,2]
[332523465,1721288009477,-500.0,0.00023835,2]
[332523466,1721288009486,-500.0,0.00023835,2]
[332523467,1721288009495,-500.0,0.00023835,2]
[332523468,1721288009829,-1018.39,0.00023835,2]
[332523469,1721288009840,-500.0,0.00023835,2]
[332523470,1721288009850,-500.0,0.00023835,2]
[332523471,1721288009860,-500.0,0.00023835,2]
[332523472,1721288009869,-500.0,0.00023835,2]
[332523473,1721288009879,-500.0,0.00023835,2]
[332523474,1721288009889,-500.0,0.00023835,2]
[332523475,1721288009899,-500.0,0.00023835,2]
[332523476,1721288009909,-500.0,0.00023835,2]
[332523477,1721288009919,-500.0,0.00023835,2]